Cogmind - Beta 11.1 @@@ ROGUE MODE // 2022.10.07 @ 17:37:38 Player: Flerik Result: Destroyed by L-31 Rogue with Katana Performance ------------- Evolutions (1) 500 Regions Visited (3) 600 Robots Destroyed (19) 95 Value Destroyed (294) 294 Prototype IDs (4) 80 Alien Tech Used (0) 0 Bonus (0) 0 TOTAL SCORE: 1569 Bonus ------- None Cogmind --------- Core Integrity 0/400 Matter 195/300 Energy 61/100 System Corruption 2% Temperature Cool (0) Movement Flying (37) Location -9/Mines Parts ------- > --- POWER (1) -------- (None) > --- PROPULSION (2) --- Flight Unit Flight Unit > --- UTILITY (4) ------ Small Storage Unit Structural Scanner Hacking Suite > --- WEAPON (2) ------- (None) > --- INVENTORY (8) ---- Light Ion Engine Improved Terrain Scanner Seismic Detector Hacking Suite Hacking Suite Peak State ------------ > --- POWER ------------ Ion Engine > --- PROPULSION ------- VSS Leg VSS Leg > --- UTILITY ---------- Small Storage Unit Structural Scanner Hacking Suite Hacking Suite > --- WEAPON ----------- Small Laser Light Assault Rifle > --- INVENTORY -------- Light Ion Engine Flight Unit Flight Unit Improved Terrain Scanner Seismic Detector Hacking Suite Hacking Suite Light Cannon [Rating: 18] Favorites ----------- Power Ion Engine Engine Ion Engine Propulsion Aluminum Leg Leg Aluminum Leg Flight Unit Flight Unit Utility Small Storage Unit Device Seismic Detector Storage Small Storage Unit Hackware Hacking Suite Weapon Light Assault Rifle Energy Gun Small Laser Ballistic Gun Light Assault Rifle Ballistic Cannon Light Cannon Build | -11 -10 -9 -9 ------- Run | Scr Mat Mat Min Slots Evolved 2 | . . 2 . Power . | . . . . Propulsion . | . . . . Utility 2 | . . 2 . Weapon . | . . . . Parts Attached 21 | 7 . 12 2 Power 3 | 1 . 2 . Engine 3 | 1 . 2 . Core . | . . . . Reactor . | . . . . Propulsion 8 | 2 . 4 2 Treads . | . . . . Leg 5 | 2 . 3 . Wheel . | . . . . Hover . | . . . . Flight 3 | . . 1 2 Utility 7 | 2 . 5 . Device 4 | 1 . 3 . Storage 1 | 1 . . . Processor . | . . . . Hackware 2 | . . 2 . Protection . | . . . . Artifact . | . . . . Weapon 3 | 2 . 1 . Energy Gun 1 | 1 . . . Energy Cannon . | . . . . Ballistic Gun 1 | 1 . . . Ballistic Cannon 1 | . . 1 . Launcher . | . . . . Special Weapon . | . . . . Impact Weapon . | . . . . Slashing Weapon . | . . . . Piercing Weapon . | . . . . Special Melee Weapon . | . . . . Unidentified Prototypes 1 | . . 1 . Parts Lost 7 | . . 7 . Power 2 | . . 2 . Propulsion 2 | . . 2 . Utility 1 | . . 1 . Weapon 2 | . . 2 . Highest Loss Streak 6 | . . 6 . To Critical Strikes . | . . . . Average Slot Usage (%) 96 | . 100 92 . Engine 11 | . 14 9 . Leg 23 | . 28 18 . Device 14 | . 14 15 . Storage 12 | . 14 11 . Hackware 7 | . . 17 . Energy Gun 11 | . 14 9 . Ballistic Gun 12 | . 14 10 . Naked Turns . | . . . . Heaviest Build 16 | 13 13 16 . Greatest Support 24 | 20 20 24 . Greatest Overweight (x) 2 | 1 . 2 . Average Overweight (x) . | . . . . Largest Inventory Capacity 8 | 8 8 8 8 Average Capacity 7 | 7 8 8 8 Most Carried 8 | 4 8 8 7 Average Carried 4 | 2 5 7 6 Final Capacity 8 | 8 8 8 8 Final Carried 8 | 4 8 7 5 Class Distribution -------------------- 74% | Mutant 20% | Hacker-Mutant 4% | Infiltrator-Mutant Dominant Class ---------------- Mutant | -10/Materials Hacker-Mutant | -9/Materials Hacker-Mutant | -9/Mines Resources | -11 -10 -9 -9 ----------- Run | Scr Mat Mat Min Matter Collected 332 | 270 24 38 . Remotely . | . . . . Salvage Created 630 | 175 222 233 . Parts 40 | 15 11 14 . Haulers Intercepted . | . . . . Recyclers Shooed . | . . . . Parts Field Recycled . | . . . . Retrieved Matter . | . . . . Parts Self-Destructed . | . . . . Prevented . | . . . . Kills | -11 -10 -9 -9 ------- Run | Scr Mat Mat Min Combat Hostiles Destroyed 11 | . 3 8 . Guns 10 | . 3 7 . Cannons 1 | . . 1 . Classes Destroyed 5 | 2 1 2 . Tunneler 5 | 5 . . . Recycler 3 | 1 2 . . Swarmer 6 | . 3 3 . Grunt 4 | . . 4 . Sentry 1 | . . 1 . Best Kill Streak 4 | 2 2 4 . Combat Bots Only 4 | . 2 4 . Max Kills in Single Turn 2 | 1 1 2 . Gunslinging 1 | . . 1 . Exploded . | . . . . Melee . | . . . . Uniques/NPCs Destroyed . | . . . . Combat | -11 -10 -9 -9 -------- Run | Scr Mat Mat Min Damage Taken 1220 | . 114 1001 105 Core 463 | . 33 364 66 Absorbed by Shields . | . . . . Core Remaining (%) 93 | 100 86 . . Volleys Fired 87 | 31 24 32 . Largest 2 | 1 2 2 . Hottest 60 | 40 60 60 . Shots Fired 129 | 31 48 50 . Gun 123 | 31 48 44 . Cannon 6 | . . 6 . Launcher . | . . . . Special . | . . . . Kinetic 56 | . 24 32 . Thermal 73 | 31 24 18 . Explosive . | . . . . Electromagnetic . | . . . . Robot Hit Streak 12 | 4 7 12 . Robot Miss Streak 3 | 2 3 3 . Penetration Max . | . . . . Secondary Targets 4 | . 1 3 . Max Gunslinging Chain 1 | . 1 1 . Shots Hit Robots 84 | 21 29 34 . Core Hits 34 | 7 11 16 . Critical Kills 1 | . . 1 . Critical Parts Destroyed . | . . . . Critical Strikes 1 | . . 1 . Destroy 1 | . . 1 . Melee Attacks . | . . . . Impact . | . . . . Slashing . | . . . . Piercing . | . . . . Sneak Attacks . | . . . . Combat Hostiles . | . . . . Follow-up Attacks . | . . . . Damage Inflicted 853 | 238 281 334 . Guns 782 | 238 281 263 . Cannons 67 | . . 67 . Explosions . | . . . . Melee . | . . . . Ramming 4 | . . 4 . Kinetic 346 | . 124 222 . Thermal 503 | 238 157 108 . Explosive . | . . . . Electromagnetic . | . . . . Impact . | . . . . Slashing . | . . . . Piercing . | . . . . Highest Corruption 2 | . . 2 2 Average Corruption 2 | . . 2 2 Corruption Purged . | . . . . Corruption Blocked . | . . . . Overload Shots . | . . . . Overflow Damage . | . . . . Projectiles . | . . . . Explosions . | . . . . Melee . | . . . . Knockbacks 3 | . . 3 . Impact . | . . . . Kinetic 2 | . . 2 . Secondary 1 | . . 1 . Self-Inflicted Damage 1 | . . 1 . Shots . | . . . . Rammed 3 | . . 3 . Targets Rammed 3 | . . 3 . Kicked . | . . . . Crushed . | . . . . Highest Temperature 73 | . 40 73 . Average Temperature 21 | . 22 20 . Received Heat Transfer 435 | . . 411 24 Siege Activations . | . . . . Robots Corrupted . | . . . . Combat Hostiles . | . . . . Parts Fried . | . . . . Impact Corruptions . | . . . . Robots Melted . | . . . . Combat Hostiles . | . . . . Parts Melted . | . . . . Heat Transferred 1125 | 525 350 250 . Parts Sabotaged . | . . . . Parts Stolen . | . . . . Parts Stripped . | . . . . Power Chain Reactions . | . . . . Missiles Intercepted . | . . . . Alert | -11 -10 -9 -9 ------- Run | Scr Mat Mat Min Peak Influence 217 | 30 138 217 91 Initial 76 | . 19 57 76 Average 62 | 12 65 124 86 Maximum Alert Level 1 | . . 1 . Low Security (%) 98 | 100 100 93 100 Level 1 1 | . . 6 . Level 2 . | . . . . Level 3 . | . . . . Level 4 . | . . . . Level 5 . | . . . . High Security . | . . . . Max Security . | . . . . Squads Dispatched 1 | . . 1 . Investigation 1 | . . 1 . Extermination . | . . . . Reinforcement . | . . . . Assault . | . . . . Garrison . | . . . . Intercept . | . . . . Searches Triggered . | . . . . Construction Impeded . | . . . . Haulers Reinforced . | . . . . Active Scanning Responses . | . . . . Cargo Convoy Interrupts . | . . . . Stealth | -11 -10 -9 -9 --------- Run | Scr Mat Mat Min Distress Signals 4 | . 1 3 . Communications Jammed . | . . . . Distress Signals . | . . . . Times Spotted 28 | . 5 20 3 Peak Tracking Total 15 | . 4 15 3 Tactical Retreats . | . . . . Traps | -11 -10 -9 -9 ------- Run | Scr Mat Mat Min Traps Triggered 2 | . . 2 . Indirectly . | . . . . Trap Hack Attempts . | . . . . Triggered . | . . . . Disarmed . | . . . . Reprogrammed . | . . . . Reused . | . . . . Traps Extracted . | . . . . Installed . | . . . . Triggered . | . . . . Machines | -11 -10 -9 -9 ---------- Run | Scr Mat Mat Min Machines Disabled . | . . . . Max in Single Turn . | . . . . Machines Sabotaged . | . . . . Garrisons Compromised . | . . . . Overloaded Fab Kills . | . . . . Hacking | -11 -10 -9 -9 --------- Run | Scr Mat Mat Min Machines Accessed 4 | . 3 1 . Terminals 3 | . 2 1 . Fabricators . | . . . . Repair Stations . | . . . . Recycling Units 1 | . 1 . . Scanalyzers . | . . . . Garrison Access . | . . . . Total Hacks 11 | . 9 2 . Successful 7 | . 6 1 . Failed 4 | . 3 1 . Catastrophic 1 | . 1 . . Database Lockouts . | . . . . Manual 5 | . 5 . . Terminals 8 | . 6 2 . Fabricators . | . . . . Repair Stations . | . . . . Recycling Units 3 | . 3 . . Scanalyzers . | . . . . Garrison Access . | . . . . Terminal Hacks 3 | . 2 1 . Robot Analysis 1 | . . 1 . Prototype ID Bank 2 | . 2 . . Fabricator Hacks . | . . . . Repair Station Hacks . | . . . . Recycling Unit Hacks 1 | . 1 . . Report Inventory 1 | . 1 . . Scanalyzer . | . . . . Garrison Access Hacks . | . . . . Unauthorized Hacks 3 | . 3 . . Terminals 2 | . 2 . . Track 1 | . 1 . . Botnet 1 | . 1 . . Fabricators . | . . . . Repair Stations . | . . . . Recycling Units 1 | . 1 . . Recyclers 1 | . 1 . . Scanalyzers . | . . . . Garrison Access . | . . . . Data Cores Recovered . | . . . . Used . | . . . . Hacking Detections 4 | . 3 1 . Full Trace Events . | . . . . Feedback Events . | . . . . Feedback Blocked . | . . . . Robot Schematics Acquired . | . . . . Robots Built . | . . . . Authchips . | . . . . Time . | . . . . Total Robot Build Rating . | . . . . Part Schematics Acquired . | . . . . Parts Built . | . . . . Authchips . | . . . . Time . | . . . . Total Part Build Rating . | . . . . Parts Repaired . | . . . . Time . | . . . . Parts Recycled . | . . . . Recycled Matter . | . . . . Retrieved Matter . | . . . . Retrieved Components . | . . . . Parts Scanalyzed . | . . . . Part Schematics Acquired . | . . . . Parts Damaged . | . . . . Bothacking | -11 -10 -9 -9 ------------ Run | Scr Mat Mat Min Used RIF Installer . | . . . . Robots Hacked . | . . . . Non-combat . | . . . . Combat . | . . . . Robot Hacks Applied . | . . . . Relay Couplers Released . | . . . . Fabnet Peak Effective % . | . . . . Robots Rewired . | . . . . Allies Hacked . | . . . . Hacks Repelled . | . . . . Allies | -11 -10 -9 -9 -------- Run | Scr Mat Mat Min Total Allies . | . . . . Largest Group . | . . . . Highest-Rated Group . | . . . . Highest-Rated Ally . | . . . . Total Orders . | . . . . Ally Attacks . | . . . . Total Damage . | . . . . Kills . | . . . . Allies Corrupted . | . . . . Allies Melted . | . . . . Intel | -11 -10 -9 -9 ------- Run | Scr Mat Mat Min Robot Analysis Total 1 | . . 1 . Derelict Logs Recovered . | . . . . Drone Launches . | . . . . Drone Recoveries . | . . . . Exploration | -11 -10 -9 -9 ------------- Run | Scr Mat Mat Min Turns Passed 867 | 316 306 242 3 Spaces Moved 531 | 202 194 135 . Core 11 | 7 . 4 . Treads . | . . . . Legs 520 | 195 194 131 . Wheels . | . . . . Hover . | . . . . Flight . | . . . . Fastest Speed 50 | 50 120 90 . Average Speed 115 | 118 120 102 . Slowest Speed 150 | 120 120 150 . Overloaded Moves . | . . . . Propulsion Burnouts . | . . . . Robots Hopped . | . . . . Cave-ins Triggered . | . . . . Exploration Rate (%) 16 | 12 28 22 3 Regions Visited 3 Branch Regions 1 Pre-discovered Areas . | . . . . Known Exits Taken . | . . . . Unknown Exits Taken 3 | 1 1 1 . Scrap Searched . | . . . . Spaces Dug . | . . . . Terrain Destroyed . | . . . . Melee . | . . . . Projectile . | . . . . AOE . | . . . . Terrain Rammed . | . . . . Walls Destroyed . | . . . . Machines Disabled . | . . . . Actions | -11 -10 -9 -9 --------- Run | Scr Mat Mat Min Total 665 | 243 225 194 3 Wait . | . . . . Move 529 | 201 193 135 . Hop . | . . . . Pick Up 13 | 4 6 3 . Fast Attach 12 | 7 . 5 . Attach 5 | . . 3 2 Detach 2 | . . 2 . Swap 4 | . . 4 . Drop 11 | . 2 8 1 Fire 87 | 31 24 32 . Melee . | . . . . Ram 2 | . . 2 . Kick . | . . . . Crush . | . . . . Escape Stasis . | . . . . Rewire . | . . . . Trap . | . . . . Miscellaneous . | . . . . Route ------- -11/Scrapyard -10/Materials -9/Materials -9/Mines History --------- Turn | Location | Event 5 | -11/Scrapyard | Discovered new exit (range 16) 317 | -11/Scrapyard | Entered Materials 318 | -10/Materials | Build established: Mutant 516 | -10/Materials | Discovered new exit (range 14) 623 | -10/Materials | Entered another Materials area 623 | -9/Materials | Evolved 2 slots: Utility x2 832 | -9/Materials | Core integrity fell below 50% 857 | -9/Materials | Discovered new exit (range 6) 860 | -9/Materials | Core integrity fell below 20% 865 | -9/Materials | Entered Mines 868 | -9/Mines | Destroyed by L-31 Rogue with Katana Last Messages --------------- 00848_ G-34 Mercenary knocked back. 00849_ K-01 Serf collects debris. 00849_ Ion Engine destroyed. 00849_ K-01 Serf collects debris. 00854_ G-34 Mercenary destroyed. 00855_ Critical hit (Burn: +37). 00855_ R-06 Scavenger collects Aluminum Leg. 00856_ Hacking Suite destroyed. 00856_ Slammed into G-34 Mercenary. 00857_ Slammed into Y-45 Defender. 00857_ EXIT=FOUND 00857_ K-01 Serf collects debris. 00858_ R-06 Scavenger collects Sml. Laser. 00862_ K-01 Serf collects debris. 00864_ R-06 Scavenger collects Heat Sink. 00865_ Slammed into A-02 Transporter. LOCATION=UNKNOWN GOAL=ESCAPE Something is scanning the area. 00865_ Dropped Lgt. Cannon. Map ----- +----------------------------------------------------+ | ????????????????????????????????? | | ????????????????????????????????? | | ????????????????????????????????? | | ????????????????????????????????? | | ????????????????????????????????? | | ????????????????????????????????? | | ????????????????????????????????? | | ????????????????????????????????? | | ????????????????????????????????? | | ????????????????????????????????? | | ????????????????????????????????? | | ????????????????????????????????? | | ????????????????????????????????? | | ????????????????????????????????? | | ????????????????????????????????? | | ?????????????????????????####???? | | ?????????????????????????####???? | | ????????????????????????? ##???? | | ?????????????????????????? ##???? | | ?????????????????????????? ##???? | | ???????????????????####### ####?? | | ???????????????????####### #####? | | ??????????????????? ###? | | ?????????????????????## ##? | | ?????????????????????## gg ##? | | ?????????????????????###l@ ##? | | ??????????????????????### ##? | | ??????????????????????#### ##? | | ???????????????????????#### ###? | | ?????????????????????????#######? | | ??????????????????????????#####?? | | ????????????????????????????????? | | ????????????????????????????????? | | ????????????????????????????????? | | ????????????????????????????????? | | ????????????????????????????????? | | ????????????????????????????????? | | ????????????????????????????????? | | ????????????????????????????????? | | ????????????????????????????????? | | ????????????????????????????????? | | ????????????????????????????????? | | ????????????????????????????????? | | ????????????????????????????????? | | ????????????????????????????????? | | ????????????????????????????????? | | ????????????????????????????????? | | ????????????????????????????????? | | ????????????????????????????????? | | ????????????????????????????????? | +----------------------------------------------------+ Best States ------------- Heat Dissipation 28 Energy Generation 10 Energy Capacity 250 Matter Stores 300 Matter Capacity 300 Sight Range 16 Terrain Scan Range 16 Terrain Scan Density 10 ECM Strength 1 Evasion (%) 57 Offensive Hacking 20 Item Schematics ----------------- None Robot Schematics ------------------ None Fabricated ------------ Nothing Alien Tech Used ----------------- None Achievements -------------- None Challenges ------------ None Game ------ Seed InsulationLightpackChip Manual? 0 Play Time 00:07:21 Cumulative 52.3 hours Start 2022.10.07 @ 17:30:11 End 2022.10.07 @ 17:37:38 Sessions 1 Manual Loads 0 Difficulty Rogue Special Mode None Game No. 83 Rogue 82 Adventurer 1 Explorer 0 Win Type - Total 3 Types 3/0/0/0/0/0/0/0/0 Lore% 57 Gallery% 47 Achievement% 43 Wizard Run 0 Options --------- ASCII 0 Keyboard 0 Movement Numpad Keybinds 0 Fullscreen 1 Font 18/SmallcapsGlow Map View 76x50 Tactical HUD 1 Map Filters NONE Filters NONE Steam 1 RUN: f61ac59f-96d6-49fb-bc6d-cadc8c0c9052